bitfinex-derivatives/quotes_SOLF0:USTF0_20250415
["timestamp","ask_amount","ask_price","bid_price","bid_amount"]
[1744724586283,31.66463857,133.49,133.4,40.04]
[1744724586674,31.66463857,133.5,133.4,40.04]
[1744724587274,0.0545105,133.46,133.44,0.05270484]
[1744724587478,0.05243476,133.46,133.44,0.05379832]
[1744724587881,7.494,133.45,133.44,0.05379832]
[1744724589971,51.53387865,133.46,133.39,359.0]
[1744724590378,7.4946,133.44,133.39,359.0]
[1744724590574,51.48144389,133.48,133.39,359.0]
[1744724590879,7.491,133.51,133.43,51.48144389]
[1744724591178,226.65909496,133.56,133.46,7.4932]
[1744724591477,226.65909496,133.56,133.44,42.1461]
[1744724591478,7.4904,133.52,133.44,42.1461]
[1744724591680,7.4904,133.52,133.47,7.4924]
[1744724591869,7.4904,133.52,133.45,2.0972]
[1744724592070,0.05318736,133.5,133.47,0.05748675]
[1744724592269,226.65909496,133.56,133.48,7.492]
[1744724592270,175.17765107,133.51,133.48,7.492]
[1744724592469,0.04762357,133.5,133.47,0.0550254]
[1744724592681,0.04762357,133.5,133.49,7.4917]
[1744724592877,175.17765107,133.51,133.48,40.04]
[1744724593075,1e-08,133.51,133.48,40.04]
[1744724593782,1e-08,133.51,133.5,7.4912]
[1744724593983,0.05347975,133.51,133.5,7.4912]
[1744724594579,0.05347975,133.51,133.48,40.04]
[1744724595183,0.05347975,133.51,133.49,7.4915]
[1744724595384,0.05347975,133.51,133.48,40.04]
[1744724595684,0.05347975,133.51,133.5,7.4912]
[1744724595685,0.05347974,133.51,133.5,7.4912]
[1744724596587,0.05347974,133.51,133.48,40.04]
[1744724596986,0.05347974,133.51,133.49,7.4913]
[1744724597284,0.05347974,133.51,133.48,40.04]
[1744724597686,0.05347974,133.51,133.5,7.4912]
[1744724599789,46.91379093,133.57,133.5,51.48144389]
[1744724600088,46.91379093,133.57,133.52,51.48144389]
[1744724600286,46.91379093,133.57,133.53,40.7067]
[1744724600483,46.91379093,133.57,133.53,38.66]
[1744724600686,0.04905946,133.56,133.54,0.04827893]
[1744724602886,51.48144389,133.51,133.43,359.0]
[1744724603190,38.66,133.54,133.44,591.06144389]
[1744724603386,1.9356,133.56,133.46,51.48144389]
[1744724603598,85.57379093,133.57,133.47,40.6922]
[1744724603791,137.05523482,133.57,133.47,40.6922]
[1744724603987,0.05331302,133.53,133.47,40.6922]
[1744724604289,0.05331302,133.53,133.51,0.05450872]
[1744724604489,7.4901,133.52,133.51,0.05450872]
[1744724605290,90.17475691,133.53,133.44,578.22]
[1744724605490,51.48144389,133.51,133.44,578.22]
[1744724605793,7.4918,133.49,133.44,578.22]
[1744724606288,92.17184389,133.53,133.44,578.22]
[1744724606493,0.05765868,133.48,133.45,0.04833245]
[1744724607091,0.05765868,133.48,133.46,7.493]
[1744724607285,0.05765868,133.48,133.45,51.52977634]
[1744724607490,51.48144389,133.55,133.45,53.59747634]
[1744724607694,51.48144389,133.55,133.48,7.492]
[1744724607889,7.4904,133.52,133.48,7.492]
[1744724608094,38.66,133.56,133.45,53.54914389]
[1744724608291,38.66,133.56,133.5,7.4911]
[1744724608492,0.05102261,133.54,133.52,0.05127826]
[1744724608686,0.05102261,133.54,133.52,0.05733026]
[1744724609089,7.54002261,133.54,133.52,0.05733026]
[1744724609291,0.05102261,133.54,133.52,0.05733026]
[1744724609800,7.4895,133.53,133.52,0.05733026]
[1744724610090,0.05102261,133.54,133.52,0.05733026]
[1744724610508,0.05102261,133.54,133.52,7.54723026]
[1744724611498,0.05102261,133.54,133.53,7.4895]
[1744724611997,0.05102261,133.54,133.52,0.05733026]
[1744724612600,0.05102261,133.54,133.52,7.54713026]
[1744724612796,0.05102261,133.54,133.52,0.05733026]
[1744724613193,0.05102261,133.54,133.52,7.54713026]
[1744724613605,0.05102261,133.54,133.52,7.54723026]
[1744724614499,0.05102261,133.54,133.53,7.4895]
[1744724614995,0.05102261,133.54,133.52,0.05733026]
[1744724615299,7.4895,133.53,133.52,0.05733026]
[1744724615695,0.05102261,133.54,133.52,0.05733026]
[1744724616300,7.54022261,133.54,133.52,0.05733026]
[1744724617096,7.4895,133.53,133.52,0.05733026]
[1744724617798,0.05102261,133.54,133.52,0.05733026]
[1744724618301,7.4895,133.53,133.52,0.05733026]
[1744724619397,0.05102261,133.54,133.48,359.0]
[1744724620404,0.05102261,133.54,133.5,0.05278898]
[1744724621109,7.4906,133.51,133.5,0.05278898]
[1744724621799,7.4925,133.48,133.44,539.58]
[1744724622006,3.964,133.53,133.44,576.9]
[1744724622404,7.4903,133.52,133.44,576.9]
[1744724622600,37.32,133.55,133.44,576.9]
[1744724622904,0.05716043,133.51,133.48,7.54049994]
[1744724623305,0.05716043,133.51,133.48,0.04829994]
[1744724623505,7.54806043,133.51,133.48,0.04829994]
[1744724623907,0.05716043,133.51,133.48,0.04829994]
[1744724624103,0.05716043,133.51,133.48,37.36829994]
[1744724624403,46.91379093,133.57,133.5,31.64879435]
[1744724624804,46.91379093,133.57,133.49,2.0319]
[1744724625195,46.91379093,133.57,133.5,7.4909]
[1744724625396,0.04825876,133.54,133.52,0.05756036]
[1744724625906,7.4895,133.53,133.52,0.05756036]
[1744724627105,0.04825876,133.54,133.52,0.05756036]
[1744724627312,7.4895,133.53,133.52,0.05756036]
[1744724628301,7.53745876,133.54,133.52,0.05756036]
[1744724628607,0.04825876,133.54,133.52,0.05756036]
[1744724629708,7.4895,133.53,133.52,0.05756036]
[1744724631510,7.4926,133.48,133.44,539.58]
[1744724631706,19.78704243,133.5,133.43,359.0]
[1744724632008,7.4948,133.44,133.39,37.32]
[1744724632208,19.78704243,133.46,133.39,37.32]
[1744724632409,19.78704243,133.46,133.4,7.4965]
[1744724632599,7.54490452,133.44,133.41,0.05153378]
[1744724633107,7.4957,133.42,133.41,0.05153378]
[1744724634007,7.4954,133.43,133.41,0.05153378]
[1744724634211,0.05030452,133.44,133.36,37.32]
[1744724634523,7.4974,133.39,133.36,37.32]
[1744724635313,31.71795376,133.43,133.36,37.32]
[1744724635514,0.05389467,133.39,133.36,37.37738699]
[1744724636903,0.05389467,133.39,133.36,69.09534075]
[1744724637316,0.05389467,133.39,133.38,7.4979]
[1744724637710,39.327,133.45,133.36,69.09534075]
[1744724637914,9.5013,133.45,133.36,69.03795376]
[1744724638110,7.4943,133.45,133.36,69.03795376]
[1744724638315,1.9823,133.47,133.36,69.03795376]
[1744724638516,7.495,133.44,133.39,7.497]
[1744724638817,0.05583455,133.43,133.4,0.05654585]
[1744724639017,0.05583455,133.43,133.4,7.55294585]
[1744724639216,0.05583455,133.43,133.4,37.39654585]
[1744724640112,0.05583455,133.43,133.4,44.89304585]
[1744724640325,0.05583455,133.43,133.4,37.39654585]
[1744724640520,0.05583455,133.43,133.4,69.11449961]
[1744724640818,0.05583455,133.43,133.4,37.39654585]
[1744724641014,7.496,133.42,133.4,37.39654585]
[1744724641213,0.05583455,133.43,133.4,37.39654585]
[1744724641916,0.05583455,133.43,133.4,0.05654585]
[1744724642115,7.4962,133.41,133.4,0.05654585]
[1744724642816,0.05583455,133.43,133.4,0.05654585]
[1744724643511,7.4962,133.41,133.4,0.05654585]
[1744724643716,0.05583455,133.43,133.4,0.05654585]
[1744724644212,7.4962,133.41,133.4,0.05654585]
[1744724645723,69.11378831,133.43,133.36,37.34]
[1744724645920,69.05795376,133.43,133.36,37.34]
[1744724646122,7.4973,133.4,133.36,37.34]
[1744724646522,69.05795376,133.43,133.36,37.34]
[1744724646818,0.05574041,133.39,133.37,0.05203236]
[1744724647021,7.4983,133.38,133.37,0.05203236]
[1744724647323,31.77369417,133.39,133.31,4.1488]
[1744724647519,31.71795376,133.35,133.24,3.28468582]
[1744724647823,31.71795376,133.31,133.24,1.9798]
[1744724648618,0.05494204,133.29,133.26,0.0476949]
[1744724650813,7.5041,133.27,133.26,0.0476949]
[1744724651019,0.05494204,133.29,133.26,0.0476949]
[1744724651326,7.5036,133.28,133.26,0.0476949]
[1744724651724,0.05494204,133.29,133.26,0.0476949]
[1744724652025,7.5041,133.27,133.26,0.0476949]
[1744724653023,7.5064,133.23,133.2,37.34]
[1744724653223,31.71795376,133.28,133.2,37.34]
[1744724653425,31.71795376,133.24,133.17,359.0]
[1744724653625,31.71795376,133.24,133.16,36.28]
[1744724654125,0.05322625,133.21,133.19,7.55905631]
[1744724654422,0.05322625,133.21,133.19,0.05075631]
[1744724654824,7.5081,133.2,133.19,0.05075631]
[1744724655729,0.05322625,133.21,133.19,0.05075631]
[1744724656921,0.05322625,133.21,133.15,36.3]
[1744724657329,7.5086,133.19,133.15,36.3]
[1744724657627,68.01795376,133.28,133.18,31.71795376]
[1744724657826,36.3,133.28,133.19,36.32]
[1744724658028,0.05352449,133.24,133.19,36.32]
[1744724658425,7.5068,133.23,133.19,42.5972]
[1744724658726,0.05352449,133.24,133.19,6.2772]
[1744724658923,7.5078,133.21,133.15,359.0]
[1744724659228,0.0500086,133.19,133.15,361.0928]
[1744724659633,4.2673,133.27,133.16,31.71795376]
[1744724659930,31.71795376,133.26,133.18,7.5089]
[1744724660129,7.5073,133.22,133.18,36.32]
[1744724660831,31.71795376,133.26,133.18,36.32]
[1744724660832,7.56370367,133.21,133.19,0.05762914]
[1744724661029,1.30655153,133.31,133.2,31.71795376]
[1744724661225,7.5032,133.29,133.21,4.2248]
[1744724661426,7.5032,133.29,133.23,31.71795376]
[1744724661632,7.5032,133.29,133.24,7.5056]
[1744724661925,1.30655153,133.31,133.22,37.68]
[1744724662131,31.71795376,133.3,133.21,4.2248]
[1744724662332,31.77504401,133.28,133.19,936.98]
[1744724662529,31.71795376,133.28,133.24,0.05075221]
[1744724662727,0.05214735,133.25,133.24,0.05075221]
[1744724662924,0.05214735,133.25,133.19,936.98]
[1744724662925,0.05214735,133.25,133.16,4.1866]
[1744724663231,31.71795376,133.24,133.16,4.1866]
[1744724663531,7.5072,133.22,133.17,7.5096]
[1744724663833,7.5069,133.23,133.18,7.509]
[1744724664022,0.05633466,133.22,133.16,4.1866]
[1744724664223,0.05633466,133.22,133.19,0.05288269]
[1744724664427,0.05633466,133.22,133.21,7.5075]
[1744724664727,0.05633466,133.22,133.19,37.73288269]
[1744724665128,0.05633466,133.22,133.2,7.5078]
[1744724665334,0.05633466,133.22,133.19,37.73288269]
[1744724665529,0.05633466,133.22,133.2,7.508]
[1744724665724,0.05633466,133.22,133.19,37.73288269]
[1744724666834,0.05633466,133.22,133.21,7.5075]
[1744724667335,7.5029,133.3,133.21,7.5]
[1744724667538,1.9828,133.33,133.23,31.71795376]
[1744724667729,33.74295376,133.36,133.24,41.75]
[1744724668038,31.71795376,133.41,133.3,31.71795376]
[1744724668224,35.75665376,133.43,133.31,41.6398]
[1744724668425,7.4996,133.35,133.34,0.04796578]
[1744724668637,7.4996,133.35,133.33,0.04945407]
[1744724668835,0.05285981,133.36,133.33,0.04945407]
[1744724669034,7.55215981,133.36,133.33,0.04945407]
[1744724669235,0.05285981,133.36,133.33,0.04945407]
[1744724669541,0.05285981,133.36,133.34,7.4998]
[1744724670136,0.05285981,133.36,133.35,7.4996]
[1744724670341,4.0387,133.43,133.35,37.68]
[1744724671040,52.85820076,133.46,133.35,37.68]
[1744724671442,0.05487071,133.42,133.39,0.05218745]
[1744724673141,51.55309472,133.4,133.32,39.8215]
[1744724673341,51.55309472,133.4,133.31,359.0]
[1744724673531,4.1984,133.41,133.31,359.0]
[1744724673735,7.5002,133.34,133.31,359.0]
[1744724673939,7.5002,133.34,133.29,45.1827]
[1744724674150,37.68,133.4,133.29,37.68]
[1744724674447,51.55309472,133.39,133.3,1.9659]
[1744724674646,0.05219272,133.36,133.33,0.05702567]
[1744724674847,7.4996,133.35,133.33,0.05702567]
[1744724675249,0.05219272,133.36,133.33,0.05702567]
[1744724676147,0.05219272,133.36,133.33,37.71702567]
[1744724677051,0.05219272,133.36,133.33,45.21772567]
[1744724677951,0.05219272,133.36,133.33,37.71702567]
[1744724678147,0.05219272,133.36,133.33,0.05702567]
[1744724679251,7.55129272,133.36,133.33,0.05702567]
[1744724679445,0.05219272,133.36,133.33,7.55762567]
[1744724679948,0.05219272,133.36,133.34,37.66]
[1744724680148,0.05219272,133.36,133.35,7.4996]
[1744724680351,37.66,133.43,133.34,37.66]
[1744724680655,51.55309472,133.45,133.36,7.4986]
[1744724680952,7.4967,133.41,133.36,7.4986]
[1744724681148,37.66,133.46,133.34,37.66]
[1744724681354,7.55161537,133.41,133.39,0.05075927]
[1744724681544,7.4966,133.41,133.39,0.05075927]
[1744724681752,0.04777558,133.41,133.39,0.05075927]
[1744724682452,7.4968,133.4,133.39,0.05075927]
[1744724682652,0.04777558,133.41,133.39,0.05075927]
[1744724683749,7.54427558,133.41,133.39,0.05075927]
[1744724684150,7.4968,133.4,133.39,0.05075927]
[1744724686854,0.04777558,133.41,133.34,37.66]
[1744724687648,0.04777558,133.41,133.38,7.4979]
[1744724687953,0.04777558,133.41,133.38,0.05195003]
[1744724688454,7.4971,133.4,133.38,0.05195003]
[1744724688654,0.04777558,133.41,133.38,0.05195003]
[1744724689354,51.6008703,133.41,133.38,0.05195003]
[1744724689855,7.4974,133.39,133.38,0.05195003]
[1744724690256,7.4993,133.36,133.32,41.7407]
[1744724690458,51.55309472,133.41,133.32,41.7407]
[1744724690656,37.66,133.42,133.32,41.7407]
[1744724690956,7.4979,133.38,133.34,7.4999]
[1744724691159,37.66,133.42,133.34,7.4999]
[1744724691457,0.05062565,133.39,133.37,0.04838368]
[1744724691855,7.4979,133.38,133.37,0.04838368]
[1744724694957,0.05062565,133.39,133.37,0.04838368]
[1744724695457,7.54822565,133.39,133.37,0.04838368]
[1744724695657,0.05062565,133.39,133.37,0.04838368]
[1744724696252,35.8439352,133.47,133.37,33.87081888]
[1744724696457,4.1222,133.47,133.37,33.8224352]
[1744724696658,35.8439352,133.47,133.37,2.1007]
[1744724697051,7.4959,133.42,133.38,7.4976]
[1744724697359,0.05490851,133.41,133.39,0.05209042]
[1744724697559,7.4968,133.4,133.39,0.05209042]
[1744724699261,7.4995,133.36,133.32,363.0807]
[1744724699460,31.7217352,133.41,133.32,363.0807]
[1744724699661,31.7217352,133.39,133.32,4.0807]
[1744724699961,7.5,133.35,133.32,4.0807]
[1744724700157,31.7217352,133.39,133.32,4.0807]
[1744724700356,7.55417421,133.37,133.34,0.05399735]
[1744724700561,0.05557421,133.37,133.34,0.05399735]
[1744724700970,0.05557421,133.37,133.35,36.74]
[1744724701364,7.4996,133.35,133.34,0.05399735]
[1744724701761,39.2217352,133.35,133.26,360.3048369]
[1744724702057,6.1313,133.34,133.26,1.3048369]
[1744724702257,68.4617352,133.36,133.28,7.5032]
[1744724702461,36.74,133.36,133.27,31.7217352]
[1744724702860,0.05544285,133.33,133.3,0.02337874]
[1744724703558,7.5019,133.31,133.3,0.02337874]
[1744724703768,0.05544285,133.33,133.3,0.02337874]
[1744724704264,52.89417688,133.41,133.3,88.35208239]
[1744724704460,6.2384,133.42,133.32,51.58870365]
[1744724704662,7.4982,133.38,133.32,51.58870365]
[1744724704962,51.58870365,133.39,133.3,36.74]
[1744724705162,88.32870365,133.39,133.3,36.74]
[1744724705365,0.05341245,133.36,133.33,0.05045108]
[1744724705859,7.5002,133.34,133.33,0.05045108]
[1744724706667,7.4998,133.35,133.33,0.05045108]
[1744724706964,2.00231245,133.36,133.33,0.05045108]
[1744724706965,0.05341245,133.36,133.33,0.05045108]
[1744724707761,7.5002,133.34,133.33,0.05045108]
[1744724707959,51.58870365,133.35,133.28,1.9575]
[1744724708160,51.58870365,133.35,133.26,395.74]
[1744724708372,51.58870365,133.31,133.24,2.0913]
[1744724708557,51.58870365,133.31,133.23,4.0948]
[1744724708761,36.74,133.3,133.21,576.6]
[1744724708958,36.74,133.3,133.22,4.0948]
[1744724709163,36.74,133.3,133.24,0.02837051]
[1744724709164,0.05650539,133.27,133.24,0.02837051]
[1744724709865,7.56090539,133.27,133.24,0.02837051]
[1744724710170,0.05650539,133.27,133.24,0.02837051]
[1744724711674,7.5051,133.26,133.24,0.02837051]
[1744724712175,0.05650539,133.27,133.25,7.5047]
[1744724712473,0.05650539,133.27,133.24,0.02837051]
[1744724712874,7.5047,133.26,133.24,0.02837051]
[1744724713464,0.05650539,133.27,133.24,0.02837051]
[1744724713670,0.05650539,133.27,133.25,36.76]
[1744724713971,0.05650539,133.27,133.24,0.02837051]
[1744724715075,7.5047,133.26,133.24,0.02837051]
[1744724715377,7.505,133.26,133.24,0.02837051]
[1744724715579,0.05650539,133.27,133.24,0.02837051]
[1744724716468,0.05650539,133.27,133.25,7.5052]
[1744724717181,0.05650539,133.27,133.24,4.17667051]
[1744724717676,7.56080539,133.27,133.24,11.68247051]
[1744724718177,0.05650539,133.27,133.24,4.17667051]
[1744724718678,0.05650539,133.27,133.26,7.5047]
[1744724719380,4.0894,133.35,133.26,51.58870365]
[1744724719581,541.9911,133.39,133.27,36.76]
[1744724719782,541.9911,133.39,133.3,7.5022]
[1744724719981,541.9911,133.39,133.27,88.34870365]
[1744724720282,7.4999,133.35,133.31,7.5014]
[1744724720481,0.05729668,133.34,133.32,0.0518063]
[1744724720780,0.05156529,133.34,133.32,0.0518063]
[1744724721482,51.64026894,133.34,133.24,399.7283]
[1744724721680,4.1716,133.33,133.24,399.7283]
[1744724722179,4.1716,133.33,133.24,40.7283]
[1744724722380,53.66880365,133.32,133.24,38.652]
[1744724722579,0.04874946,133.3,133.27,0.03306959]
[1744724723076,7.5039,133.28,133.27,0.03306959]
[1744724723780,0.04874946,133.3,133.27,0.03306959]
[1744724724182,7.5036,133.28,133.27,0.03306959]
[1744724724882,31.7866087,133.29,133.21,576.7]
[1744724725074,31.7866087,133.27,133.19,1.9517]
[1744724725279,4.1558,133.26,133.18,46.2336]
[1744724725882,7.5077,133.21,133.16,7.5101]
[1744724726184,0.05596422,133.2,133.15,72.2626087]
[1744724726383,0.05596422,133.2,133.17,7.5094]
[1744724726587,0.05596422,133.2,133.15,40.476]
[1744724726885,0.05596422,133.2,133.18,7.5086]
[1744724727087,0.05596422,133.2,133.16,31.7866087]
[1744724727285,0.05596422,133.2,133.18,31.7866087]
[1744724727779,7.5058,133.25,133.19,36.58]
[1744724727980,42.6334,133.3,133.19,36.58]
[1744724728175,7.5073,133.22,133.19,36.58]
[1744724728377,36.58,133.26,133.16,36.58]
[1744724728574,7.5086,133.2,133.16,44.09]
[1744724728775,31.7866087,133.23,133.15,359.0]
[1744724729078,4.1311,133.22,133.15,359.0]
[1744724729277,7.5089,133.19,133.15,366.5108]
[1744724729685,31.7866087,133.21,133.15,359.0]
[1744724729886,7.5097,133.17,133.13,1.9533]
[1744724730186,0.04984495,133.18,133.1,31.7866087]
[1744724730376,0.0568172,133.15,133.1,31.7866087]
[1744724730782,2.0087,133.24,133.14,31.7866087]
[1744724731087,7.5075,133.22,133.18,7.5092]
[1744724731784,7.5066,133.23,133.18,7.5092]
[1744724732083,0.05567505,133.21,133.19,0.04895034]
[1744724732284,576.76,133.31,133.2,88.26114146]
[1744724732483,576.76,133.31,133.23,7.5062]
[1744724732684,576.76,133.31,133.2,88.26114146]
[1744724732985,51.66114146,133.3,133.2,36.6]
[1744724733384,0.05746132,133.26,133.24,0.054381]
[1744724733588,0.05746132,133.26,133.25,7.5052]
[1744724733977,0.05746132,133.26,133.24,0.054381]
[1744724736277,7.5052,133.25,133.24,0.054381]
[1744724736476,0.05746132,133.26,133.24,0.054381]
[1744724736980,36.65746132,133.26,133.19,7.5083]
[1744724737182,51.66114146,133.25,133.16,2.0535]
[1744724737376,7.5073,133.22,133.15,2.0013]
[1744724737585,57.79374146,133.25,133.17,7.5094]
[1744724737786,57.79374146,133.25,133.15,2.0013]
[1744724737982,57.79374146,133.25,133.19,0.0575871]
[1744724738190,0.04748315,133.21,133.19,0.0575871]
[1744724739680,88.30862461,133.21,133.09,92.29784146]
[1744724739887,88.26114146,133.21,133.16,7.5098]
[1744724740184,540.42,133.23,133.14,36.6]
[1744724740386,42.7326,133.25,133.15,90.34434146]
[1744724740580,42.7326,133.25,133.16,4.0149]
[1744724740780,42.7326,133.25,133.17,51.66114146]
[1744724740781,0.04744016,133.21,133.17,51.66114146]
[1744724741182,7.55504016,133.21,133.16,4.0149]
[1744724741392,0.04744016,133.21,133.16,4.0149]
[1744724741593,0.04744016,133.21,133.19,7.5083]
[1744724741790,0.04744016,133.21,133.16,4.0149]
[1744724742288,7.509,133.19,133.15,2.0832]
[1744724742489,0.04856957,133.18,133.15,2.0832]
[1744724742787,0.05454277,133.18,133.17,7.5097]
[1744724742984,0.05454277,133.18,133.15,2.0832]
[1744724743181,0.05454277,133.18,133.16,7.51]
[1744724743688,0.05454277,133.18,133.15,9.5939]
[1744724743882,0.05454277,133.18,133.13,540.42]
[1744724744286,0.05454277,133.18,133.17,7.5097]
[1744724744787,0.05454277,133.18,133.13,540.42]
[1744724745288,7.56404277,133.18,133.15,7.5105]
[1744724745890,7.5099,133.17,133.14,7.5113]
[1744724746091,0.05454277,133.18,133.13,540.42]
[1744724746394,7.5101,133.17,133.13,540.42]
[1744724746593,7.5101,133.17,133.14,7.5111]
[1744724746795,0.05454277,133.18,133.13,540.42]
[1744724746996,0.05454277,133.18,133.12,36.6]
[1744724747298,88.31568423,133.18,133.09,36.6]
[1744724747491,0.04840531,133.15,133.09,36.6]
[1744724747893,0.04840531,133.15,133.07,6.2245]
[1744724748198,0.05426759,133.12,133.07,6.2245]
[1744724748393,0.05426759,133.12,133.11,7.5131]
[1744724748696,36.6,133.18,133.11,7.5131]
[1744724749499,36.6,133.18,133.12,7.5125]
[1744724749796,36.6,133.18,133.08,51.66114146]
[1744724749797,0.05159891,133.16,133.13,0.05661366]
[1744724750399,7.5114,133.14,133.13,0.05661366]
[1744724750591,51.71274037,133.16,133.13,0.05661366]
[1744724750592,0.05159891,133.16,133.13,0.05661366]
[1744724751800,0.05159891,133.16,133.14,7.5112]
[1744724752001,0.05159891,133.16,133.13,0.05661366]
[1744724752304,0.05159891,133.16,133.13,7.56851366]
[1744724752506,7.56229891,133.16,133.13,7.56851366]
[1744724752704,0.05159891,133.16,133.13,0.05661366]
[1744724753604,31.87528984,133.16,133.07,41.5445]
[1744724753803,33.78309093,133.16,133.07,41.5445]
[1744724754002,33.78309093,133.16,133.03,67.14369093]
[1744724754198,31.82369093,133.14,133.07,7.5153]
[1744724754404,35.32,133.13,133.07,7.5153]
[1744724754703,35.32,133.13,133.03,73.18889093]
[1744724754904,0.05476294,133.11,133.03,73.18889093]
[1744724755307,7.5135,133.11,133.07,7.515]
[1744724755603,0.05457099,133.08,133.07,7.515]
[1744724755811,7.5149,133.08,133.05,7.5162]
[1744724756002,0.05633244,133.09,133.03,41.3652]
[1744724756410,7.5153,133.08,133.05,7.5163]
[1744724756708,0.05633244,133.09,133.03,41.3652]
[1744724756900,0.05633244,133.09,133.06,7.5156]
[1744724756901,7.57093244,133.09,133.06,7.5156]
[1744724757105,0.05633244,133.09,133.03,41.3652]
[1744724757305,0.05633244,133.09,133.03,6.0452]
[1744724757507,7.5153,133.08,133.05,7.5163]
[1744724758210,7.5155,133.07,133.04,7.5169]
[1744724758511,7.5155,133.07,133.03,6.0452]
[1744724758706,0.0557795,133.06,133.03,6.0452]
[1744724759113,37.3104,133.13,133.04,35.32]
[1744724759508,69.13409093,133.13,133.04,35.32]
[1744724759710,69.13409093,133.13,133.06,7.5156]
[1744724759909,69.13409093,133.13,133.04,35.32]
[1744724760112,0.05760169,133.1,133.07,0.04971503]
[1744724760908,7.5148,133.08,133.07,0.04971503]
[1744724761309,0.05760169,133.1,133.07,0.04971503]
[1744724762409,1.957,133.17,133.09,31.82369093]
[1744724762610,1.957,133.17,133.08,35.32]
[1744724763407,33.78069093,133.17,133.08,35.32]
[1744724763612,0.05216762,133.14,133.11,0.04950274]
[1744724764113,7.5149,133.08,133.05,42.8364]
[1744724764417,31.82369093,133.11,133.03,6.0452]
[1744724764714,7.5145,133.09,133.03,6.0452]
[1744724765215,0.0574418,133.07,133.05,0.05463208]
[1744724765418,0.04835211,133.07,133.05,0.05310597]
[1744724765715,0.04835211,133.07,133.06,7.516]
[1744724766222,0.04835211,133.07,133.05,0.05310597]
[1744724767715,0.04835211,133.07,133.06,7.516]
[1744724768216,0.04835211,133.07,133.05,0.05310597]
[1744724768819,7.516,133.06,133.05,0.05310597]
[1744724771120,7.56395211,133.07,133.05,0.05310597]
[1744724771319,0.04835211,133.07,133.05,0.05310597]
[1744724771616,7.5125,133.13,133.1,7.5133]
[1744724771817,35.34,133.16,133.07,2.034]
[1744724772019,1.957,133.17,133.07,2.034]
[1744724772217,7.5124,133.13,133.1,7.5137]
[1744724772517,1.957,133.17,133.09,35.34]
[1744724772715,0.05301029,133.13,133.1,0.05566726]
[1744724773117,0.05301029,133.13,133.12,7.5126]
[1744724774426,1.029e-05,133.13,133.12,7.5126]
[1744724774718,71.36899093,133.25,133.12,7.52]
[1744724774918,39.5453,133.25,133.15,31.82369093]
[1744724775119,39.5453,133.25,133.17,7.5093]
[1744724775319,39.5453,133.25,133.17,35.34]
[1744724775622,0.05367786,133.22,133.2,0.05693379]
[1744724775822,31.82369093,133.32,133.21,67.16369093]
[1744724776017,7.5015,133.32,133.25,31.82369093]
[1744724776216,2.0969,133.34,133.26,35.34]
[1744724776422,174.69676183,133.35,133.27,31.82369093]
[1744724776725,174.69676183,133.35,133.31,7.5017]
[1744724777024,174.69676183,133.35,133.3,0.05519983]
[1744724777025,7.55634011,133.32,133.3,0.05519983]
[1744724777425,0.05464011,133.32,133.3,0.05519983]
[1744724777626,7.5019,133.31,133.3,0.05519983]
[1744724777827,0.05464011,133.32,133.3,0.05519983]
[1744724778527,39.5177,133.39,133.31,35.32]
[1744724778727,7.5,133.35,133.31,35.32]
[1744724779126,39.5177,133.39,133.31,35.32]
[1744724779326,31.82369093,133.38,133.31,35.32]
[1744724779527,0.0475656,133.36,133.34,0.05721635]
[1744724780029,7.4996,133.35,133.34,0.05721635]
[1744724780631,7.5007,133.34,133.28,34.46]
[1744724780828,31.82369093,133.38,133.28,34.46]
[1744724781228,7.5011,133.33,133.28,41.9634]
[1744724781427,4.1977,133.39,133.26,2.0628]
[1744724781730,31.82369093,133.32,133.25,393.46]
[1744724781923,31.82369093,133.32,133.25,34.46]
[1744724782123,31.82369093,133.3,133.23,542.5428]
[1744724782320,31.82369093,133.32,133.23,542.5428]
[1744724782529,31.82369093,133.3,133.23,542.5428]
[1744724782925,0.05749424,133.28,133.25,0.05171264]
[1744724783224,7.5046,133.27,133.25,0.05171264]
[1744724784031,7.56119424,133.28,133.25,0.05171264]
[1744724784223,0.05749424,133.28,133.25,0.05171264]